bitfinex-derivatives/quotes_SOLF0:USTF0_20241025
["timestamp","ask_amount","ask_price","bid_price","bid_amount"]
[1729898615673,34.80451562,160.33,160.23,3.11621901]
[1729898615871,34.80451562,160.27,160.23,3.11621901]
[1729898616396,60.64,160.29,159.91,575.0]
[1729898616572,235.84,160.4,159.8,35.152859]
[1729898616573,70.305718,160.09,159.8,35.152859]
[1729898616764,35.152859,160.01,160.0,767.21207022]
[1729898616966,35.152859,160.01,160.0,765.97475121]
[1729898617191,35.152859,160.09,160.0,765.97475121]
[1729898617364,35.152859,160.01,160.0,765.97475121]
[1729898617568,35.152859,160.01,160.0,670.22632827]
[1729898617769,35.152859,160.01,159.64,69.16196051]
[1729898617964,60.64,160.19,159.64,69.16196051]
[1729898617965,35.152859,159.83,159.64,69.16196051]
[1729898618177,35.152859,159.83,159.52,604.152859]
[1729898618178,35.152859,159.83,159.62,8.52196051]
[1729898618377,3.1325,159.83,159.69,3.1352]
[1729898618592,37.91008353,159.83,159.62,8.52196051]
[1729898619272,37.91008353,159.88,159.7,60.72]
[1729898619465,37.91008353,159.85,159.7,60.72]
[1729898619668,37.91008353,159.85,159.64,60.72]
[1729898619874,37.91008353,159.85,159.57,16.88482281]
[1729898620075,37.91008353,159.78,159.52,330.21150627]
[1729898620266,37.91008353,159.78,159.53,60.72]
[1729898620466,37.91008353,159.82,159.59,37.91008353]
[1729898620778,37.91008353,159.98,159.53,60.72]
[1729898620779,37.91008353,159.77,159.53,60.72]
[1729898621081,37.91008353,159.73,159.58,3.1373]
[1729898621288,37.91008353,159.69,159.53,60.72]
[1729898621582,173.0,159.97,159.53,60.72]
[1729898621786,37.91008353,159.72,159.53,60.72]
[1729898622079,41.04558353,159.68,159.54,3.1381]
[1729898622269,37.91008353,159.68,159.52,56.16142274]
[1729898622665,173.0,159.9,159.52,56.16142274]
[1729898622865,173.0,159.89,159.66,37.91008353]
[1729898623069,37.91008353,159.9,159.67,60.78]
[1729898623292,37.91008353,160.15,159.67,63.1268]
[1729898623293,37.91008353,159.99,159.67,63.1268]
[1729898623479,37.91008353,160.03,159.77,37.91008353]
[1729898623679,37.91008353,159.88,159.67,2.3468]
[1729898623877,37.91008353,160.02,159.77,37.91008353]
[1729898624073,37.91008353,159.9,159.67,2.3468]
[1729898624278,37.91008353,159.85,159.63,60.78]
[1729898624673,37.91008353,159.85,159.67,3.1356]
[1729898624891,37.91008353,159.75,159.54,2.367]
[1729898625080,37.91008353,159.71,159.42,60.8]
[1729898625472,37.91008353,159.66,159.42,60.8]
[1729898626085,37.91008353,159.62,159.42,60.8]
[1729898626286,43.38882178,159.64,159.42,60.8]
[1729898626502,43.38882178,159.7,159.42,60.8]
[1729898626691,6.2618,159.92,159.43,43.38882178]
[1729898626692,43.38882178,159.75,159.43,43.38882178]
[1729898627377,43.38882178,159.8,159.49,43.38882178]
[1729898627572,43.38882178,159.8,159.5,2.3917]
[1729898628192,43.38882178,159.89,159.54,43.38882178]
[1729898628495,43.38882178,159.83,159.55,2.2131]
[1729898628685,43.38882178,159.77,159.55,2.2131]
[1729898628891,43.38882178,159.67,159.55,1.0]
[1729898629092,43.38882178,159.61,159.42,60.8]
[1729898629283,43.38882178,159.61,159.4,3.2339876]
[1729898629587,173.0,159.76,159.4,3.2339876]
[1729898629786,43.38882178,159.65,159.4,3.2339876]
[1729898630097,43.38882178,159.72,159.42,43.38882178]
[1729898630280,43.38882178,159.72,159.43,60.86]
[1729898630584,43.38882178,159.72,159.44,60.88]
[1729898631182,43.38882178,159.67,159.44,60.88]
[1729898631491,43.38882178,159.56,159.45,1.0]
[1729898631684,43.38882178,159.56,159.4,3.2339876]
[1729898631878,3.1386,159.52,159.4,3.2339876]
[1729898632088,43.38882178,159.61,159.4,3.2339876]
[1729898632487,43.38882178,159.66,159.41,236.78]
[1729898632695,43.38882178,159.72,159.41,239.0775]
[1729898632878,43.38882178,159.66,159.41,239.0775]
[1729898633192,43.38882178,159.61,159.4,3.2339876]
[1729898633384,43.38882178,159.56,159.4,3.2339876]
[1729898633581,43.38882178,159.63,159.4,3.2339876]
[1729898633781,43.38882178,159.57,159.4,3.2339876]
[1729898634180,43.38882178,159.52,159.4,3.2339876]
[1729898634378,43.38882178,159.57,159.4,3.2339876]
[1729898634583,43.38882178,159.47,159.4,6.3748876]
[1729898634784,43.38882178,159.47,159.4,3.2339876]
[1729898634990,43.38882178,159.41,159.0,6.2977]
[1729898635183,3.1368,159.62,159.5,3.1389]
[1729898635385,43.38882178,159.63,159.21,43.38882178]
[1729898635589,43.38882178,159.55,159.22,64.44277541]
[1729898635886,43.38882178,159.45,159.2,4.5286]
[1729898636097,43.38882178,159.39,159.23,1.0]
[1729898636387,173.0,159.62,159.23,1.0]
[1729898636590,6.2691,159.73,159.23,1.0]
[1729898636591,173.0,160.03,159.47,43.38882178]
[1729898636782,43.38882178,159.86,159.54,43.38882178]
[1729898636981,43.38882178,159.92,159.59,43.38882178]
[1729898637178,173.0,160.14,159.55,63.2026]
[1729898637379,43.38882178,160.01,159.69,43.38882178]
[1729898637588,43.38882178,160.09,159.74,43.38882178]
[1729898637811,43.38882178,160.09,159.98,3.1295]
[1729898637980,43.38882178,160.09,159.79,43.38882178]
[1729898637981,43.38882178,160.09,159.84,60.96]
[1729898638394,43.38882178,160.03,159.8,4.4997]
[1729898638787,43.38882178,160.03,159.8,2.2426]
[1729898638987,43.38882178,159.98,159.81,1.0]
[1729898639292,43.38882178,159.92,159.81,1.0]
[1729898639496,43.38882178,159.87,159.7,2.2387]
[1729898639693,6.2498,160.22,159.7,2.2387]
[1729898639694,60.92,160.11,159.7,2.2387]
[1729898639882,43.38882178,159.97,159.7,2.2387]
[1729898640203,43.38882178,160.08,159.74,43.38882178]
[1729898640387,43.38882178,160.13,159.79,43.38882178]
[1729898640581,43.38882178,160.13,159.75,1.15064334]
[1729898640582,43.38882178,160.13,159.85,43.38882178]
[1729898640786,3.1257,160.18,160.03,3.1284]
[1729898640989,43.38882178,160.13,159.86,60.92]
[1729898641710,43.38882178,160.19,159.91,43.38882178]
[1729898641892,43.38882178,160.19,159.92,2.2749]
[1729898642087,43.38882178,160.13,159.92,2.2749]
[1729898642389,43.38882178,160.25,159.92,2.2749]
[1729898642390,43.38882178,160.12,159.92,3.2749]
[1729898642794,173.0,160.35,159.92,3.2749]
[1729898643092,173.0,160.44,160.02,43.38882178]
[1729898643399,43.38882178,160.27,160.1,3.1272]
[1729898643583,43.38882178,160.32,160.11,60.9]
[1729898643790,43.38882178,160.32,160.12,60.9]
[1729898644296,60.9,160.49,160.03,2.2892]
[1729898644297,43.38882178,160.38,160.03,45.67802178]
[1729898644494,43.38882178,160.38,160.04,60.9]
[1729898644689,43.38882178,160.33,160.03,45.67802178]
[1729898644890,43.38882178,160.28,160.13,1.0]
[1729898645094,43.38882178,160.46,160.13,1.0]
[1729898645095,43.38882178,160.33,160.13,1.0]
[1729898645292,43.38882178,160.33,160.04,60.9]
[1729898645593,43.38882178,160.38,160.05,43.38882178]
[1729898645896,43.38882178,160.38,160.08,43.38882178]
[1729898646200,43.38882178,160.33,160.05,1.14845489]
[1729898646410,60.9,160.49,160.08,43.38882178]
[1729898646411,43.38882178,160.38,160.08,43.38882178]
[1729898646598,43.38882178,160.38,160.05,1.14845489]
[1729898646599,43.38882178,160.32,160.09,1.0]
[1729898646907,43.38882178,160.37,160.09,1.0]
[1729898647095,43.38882178,160.38,160.09,1.0]
[1729898647298,43.38882178,160.31,160.09,1.0]
[1729898647501,43.38882178,160.39,160.09,1.0]
[1729898647691,43.38882178,160.45,160.12,43.38882178]
[1729898647994,43.38882178,160.5,160.17,43.38882178]
[1729898648298,43.38882178,160.5,160.18,299.6636]
[1729898648500,43.38882178,160.5,160.22,43.38882178]
[1729898648694,43.38882178,160.55,160.28,43.38882178]
[1729898648893,233.78,160.77,160.29,2.3844]
[1729898648894,43.38882178,160.61,160.29,2.3844]
[1729898649108,43.38882178,160.66,160.29,2.3844]
[1729898649294,43.38882178,160.66,160.38,43.38882178]
[1729898649496,43.38882178,160.6,160.39,2.2933]
[1729898650097,3.1159,160.69,160.54,3.1186]
[1729898650295,43.38882178,160.64,160.39,3.2933]
[1729898650596,43.38882178,160.6,160.47,3.1198]
[1729898650791,43.38882178,160.6,160.39,3.2933]
[1729898650996,43.38882178,160.55,160.31,60.78]
[1729898651191,43.38882178,160.66,160.31,60.78]
[1729898651192,43.38882178,160.5,160.31,60.78]
[1729898651802,43.38882178,160.55,160.31,60.78]
[1729898651988,43.38882178,160.55,160.32,1.0]
[1729898652297,43.38882178,160.6,160.34,43.38882178]
[1729898652490,173.0,160.76,160.34,43.38882178]
[1729898652491,43.38882178,160.66,160.34,43.38882178]
[1729898652690,43.38882178,160.66,160.39,43.38882178]
[1729898653023,6.2251,160.86,160.39,43.38882178]
[1729898653024,43.38882178,160.72,160.4,2.3766]
[1729898653193,43.38882178,160.67,160.4,4.6559]
[1729898653401,43.38882178,160.78,160.44,43.38882178]
[1729898653595,6.2205,160.98,160.45,297.04]
[1729898653596,43.38882178,160.73,160.45,297.04]
[1729898653820,6.2205,160.98,160.49,43.38882178]
[1729898653821,43.38882178,160.78,160.49,43.38882178]
[1729898654001,43.38882178,160.78,160.5,2.1948]
[1729898654497,43.38882178,160.67,160.5,2.1948]
[1729898654693,43.38882178,160.67,160.5,3.1948]
[1729898654895,43.38882178,160.67,160.5,2.1948]
[1729898655099,43.38882178,160.72,160.5,2.1948]
[1729898655295,43.38882178,160.72,160.51,1.0]
[1729898655995,6.2201,160.99,160.51,1.0]
[1729898655996,43.38882178,160.77,160.6,3.1174]
[1729898656200,43.38882178,160.72,160.61,60.7]
[1729898656393,43.38882178,160.78,160.61,60.7]
[1729898656616,43.38882178,160.73,160.61,61.7]
[1729898656798,43.38882178,160.73,160.52,60.7]
[1729898657208,43.38882178,160.67,160.52,60.7]
[1729898657815,43.38882178,160.57,160.4,4.6559]
[1729898658101,43.38882178,160.51,160.32,2.4038]
[1729898658302,43.38882178,160.66,160.32,2.4038]
[1729898658303,43.38882178,160.46,160.32,2.4038]
[1729898658605,43.38882178,160.36,160.16,2.4021]
[1729898658807,43.38882178,160.36,160.1,60.66]
[1729898658808,43.38882178,160.3,160.1,60.66]
[1729898659102,43.38882178,160.25,160.1,60.66]
[1729898659298,43.38882178,160.46,160.04,2.4021]
[1729898659299,43.38882178,160.2,160.04,2.4021]
[1729898659508,173.0,160.49,160.04,2.4021]
[1729898659701,43.38882178,160.2,160.04,2.4021]
[1729898659907,43.38882178,160.32,160.05,1.0]
[1729898660111,43.38882178,160.27,160.05,1.0]
[1729898660423,173.0,160.62,160.05,1.0]
[1729898660424,173.0,160.61,160.11,43.38882178]
[1729898660619,43.38882178,160.51,160.22,43.38882178]
[1729898660904,43.38882178,160.66,160.23,60.68]
[1729898660905,43.38882178,160.39,160.23,60.68]
[1729898661102,43.38882178,160.66,160.12,254.42]
[1729898661103,43.38882178,160.44,160.21,60.68]
[1729898661303,60.68,160.61,160.05,1.0]
[1729898661304,3.1226,160.34,160.07,60.68]
[1729898661502,43.38882178,160.37,160.07,60.68]
[1729898661726,43.38882178,160.46,160.09,43.38882178]
[1729898661903,43.38882178,160.46,160.12,1.0]
[1729898661904,43.38882178,160.3,160.12,1.0]
[1729898662109,43.38882178,160.3,160.07,60.68]
[1729898662504,104.06882178,160.46,160.07,60.68]
[1729898662814,3.1236,160.29,160.07,60.68]
[1729898663004,6.237,160.55,160.07,60.68]
[1729898663005,43.38882178,160.28,160.07,60.68]
[1729898663232,43.38882178,160.28,160.08,1.0]
[1729898663508,43.38882178,160.32,160.08,1.0]
[1729898663706,43.38882178,160.33,160.08,1.0]
[1729898664406,43.38882178,160.27,160.08,1.0]
[1729898664605,60.7,160.41,160.07,60.68]
[1729898664606,43.38882178,160.22,160.07,60.68]
[1729898664799,173.0,160.39,160.04,2.4021]
[1729898665110,43.38882178,160.28,160.04,2.4021]
[1729898665519,43.38882178,160.28,160.05,1.0]
[1729898665910,43.38882178,160.22,159.88,43.38882178]
[1729898666210,43.38882178,160.11,159.86,60.7]
[1729898666401,104.08882178,160.25,159.89,1.0]
[1729898666402,43.38882178,160.01,159.89,1.0]
[1729898666716,43.38882178,160.01,159.71,43.38882178]
[1729898666717,43.38882178,159.95,159.62,60.74]
[1729898666904,43.38882178,159.85,159.62,60.74]
[1729898667103,43.38882178,159.9,159.63,1.0]
[1729898667311,173.0,160.06,159.65,43.38882178]
[1729898667510,9.3751,160.22,159.7,43.38882178]
[1729898667511,43.38882178,159.96,159.7,43.38882178]
[1729898667731,43.38882178,160.01,159.71,2.3565]
[1729898668014,43.38882178,160.06,159.75,43.38882178]
[1729898668208,43.38882178,160.11,159.8,43.38882178]
[1729898668409,43.38882178,160.11,159.86,43.38882178]
[1729898668604,3.1275,160.09,159.94,3.1303]
[1729898668810,43.38882178,160.22,159.91,43.38882178]
[1729898669013,43.38882178,160.11,159.92,2.3565]
[1729898669312,43.38882178,160.17,159.92,2.3565]
[1729898669610,43.38882178,160.12,159.93,1.0]
[1729898669909,43.38882178,160.11,159.91,60.74]
[1729898670113,43.38882178,160.18,159.91,60.74]
[1729898670313,43.38882178,160.12,159.91,60.74]
[1729898670516,43.38882178,160.17,159.92,1.0]
[1729898670809,3.1286,160.03,159.92,1.0]
[1729898671010,43.38882178,160.01,159.79,60.74]
[1729898671210,43.38882178,160.01,159.69,2.3471]
[1729898671211,43.38882178,159.95,159.69,2.3471]
[1729898671453,43.38882178,160.01,159.73,43.38882178]
[1729898671608,43.38882178,160.01,159.69,2.3471]
[1729898672015,43.38882178,159.96,159.77,1.0]
[1729898672317,43.38882178,160.01,159.77,1.0]
[1729898672514,43.38882178,160.12,159.81,43.38882178]
[1729898672727,43.38882178,160.12,159.82,2.4079]
[1729898672957,3.129,160.02,159.89,3.1312]
[1729898673217,2.3964,160.24,159.82,2.4079]
[1729898673218,43.38882178,160.01,159.82,1.0]
[1729898673717,43.38882178,160.02,159.82,1.0]
[1729898673917,43.38882178,160.07,159.76,60.78]
[1729898674109,43.38882178,160.17,159.85,43.38882178]
[1729898674309,43.38882178,160.17,159.9,43.38882178]
[1729898674516,43.38882178,160.12,159.92,18.42]
[1729898674821,43.38882178,160.17,159.93,60.78]
[1729898675021,3.1267,160.13,160.0,3.1291]
[1729898675206,43.38882178,160.22,159.94,2.2326]
[1729898675407,43.38882178,160.17,159.94,20.6526]
[1729898675717,43.38882178,160.17,159.95,1.14942745]
[1729898676017,43.38882178,160.22,159.94,3.2326]
[1729898676220,43.38882178,160.22,159.94,2.2326]
[1729898676412,43.38882178,160.28,159.98,43.38882178]
[1729898676728,43.38882178,160.38,160.09,43.38882178]
[1729898676931,60.78,160.57,160.09,43.38882178]
[1729898676932,43.38882178,160.44,160.14,43.38882178]
[1729898677111,43.38882178,160.49,160.19,43.38882178]
[1729898677419,43.38882178,160.54,160.25,43.38882178]
[1729898677716,43.38882178,160.54,160.26,60.78]
[1729898678311,43.38882178,160.42,160.26,1.0]
[1729898678710,43.38882178,160.42,160.16,2.2775]
[1729898678913,43.38882178,160.48,160.19,61.80882178]
[1729898679110,43.38882178,160.48,160.16,2.2775]
[1729898679111,43.38882178,160.37,160.17,1.0]
[1729898679312,43.38882178,160.42,160.17,1.0]
[1729898679910,43.38882178,160.43,160.16,2.2775]
[1729898680110,43.38882178,160.52,160.16,2.2775]
[1729898680330,43.38882178,160.52,160.23,43.38882178]
[1729898680521,43.38882178,160.57,160.28,43.38882178]
[1729898680821,43.38882178,160.62,160.33,61.80882178]
[1729898681022,43.38882178,160.62,160.29,4.4953]
[1729898681023,43.38882178,160.67,160.38,43.38882178]
[1729898681321,43.38882178,160.62,160.34,60.74]
[1729898681615,43.38882178,160.57,160.34,1.0]
[1729898681816,173.0,160.84,160.38,43.38882178]
[1729898682022,3.1166,160.65,160.43,43.38882178]
[1729898682319,43.38882178,160.73,160.43,43.38882178]
[1729898682520,3.1171,160.62,160.48,3.1197]
[1729898682716,43.38882178,160.68,160.46,60.7]
[1729898682910,43.38882178,160.73,160.46,60.7]
[1729898683112,3.1159,160.69,160.49,1.0]
[1729898683314,43.38882178,160.78,160.49,1.0]
[1729898683521,43.38882178,160.73,160.49,1.0]
[1729898683711,173.0,160.96,160.49,1.0]
[1729898683712,43.38882178,160.78,160.49,1.0]
[1729898683915,173.0,160.96,160.53,43.38882178]
[1729898683916,43.38882178,160.83,160.53,43.38882178]
[1729898684112,3.1139,160.79,160.65,3.1164]
[1729898684310,3.1139,160.79,160.66,60.7]
[1729898684520,43.38882178,160.85,160.66,60.7]
[1729898684822,43.38882178,160.85,160.49,1.0]
[1729898684823,43.38882178,160.69,160.49,1.0]
[1729898685020,43.38882178,160.65,160.47,2.4168]
[1729898685320,43.38882178,160.65,159.86,22.42857486]
[1729898685321,43.38882178,160.6,160.54,1.0]
[1729898685511,60.64,160.79,160.37,43.38882178]
[1729898685512,43.38882178,160.65,160.37,43.38882178]
[1729898685711,60.64,160.79,160.37,43.38882178]
[1729898685712,43.38882178,160.6,160.37,3.1219]
[1729898685918,43.38882178,160.65,160.33,104.02882178]
[1729898686119,43.38882178,160.65,160.38,44.38882178]
[1729898686421,60.64,160.79,160.38,44.38882178]
[1729898686422,37.7128245,160.66,160.44,37.7128245]
[1729898686720,47.0486245,160.89,160.33,60.64]
[1729898686721,37.7128245,160.57,160.33,60.64]
[1729898686917,37.7128245,160.61,160.37,37.7128245]
[1729898687117,37.7128245,160.65,160.42,37.7128245]
[1729898687817,2.6022,160.83,160.34,1.0]
[1729898687818,37.7128245,160.56,160.34,1.0]
[1729898688016,37.7128245,160.51,160.33,60.64]
[1729898688219,37.7128245,160.56,160.34,37.7128245]
[1729898688424,1.0,160.64,160.34,37.7128245]
[1729898688717,1.0,160.64,160.33,60.64]
[1729898688718,37.7128245,160.64,160.42,37.7128245]
[1729898688919,37.7128245,160.51,160.33,60.64]
[1729898689116,37.7128245,160.59,160.37,37.7128245]
[1729898689319,175.6022,160.83,160.42,37.7128245]
[1729898689617,37.7128245,160.58,160.35,37.7128245]
[1729898689817,2.6022,160.83,160.35,37.7128245]
[1729898689818,37.7128245,160.66,160.35,37.7128245]
[1729898690122,37.7128245,160.66,160.44,37.7128245]
[1729898690313,37.7128245,160.58,160.33,60.64]
[1729898690515,37.7128245,160.5,160.34,1.14648033]
[1729898690712,37.7128245,160.46,160.33,60.64]
[1729898691022,37.7128245,160.56,160.33,60.64]
[1729898691215,1.0,160.65,160.38,37.7128245]
[1729898691418,37.7128245,160.58,160.38,37.7128245]
[1729898691628,37.7128245,160.58,160.33,60.64]
[1729898691629,37.7128245,160.5,160.33,60.64]
[1729898691825,37.7128245,160.46,160.33,60.64]
[1729898692020,37.7128245,160.54,160.33,60.64]
[1729898692221,1.0,160.57,160.35,37.7128245]
[1729898692521,2.6022,160.83,160.33,60.64]
[1729898692522,37.7128245,160.62,160.33,60.64]
[1729898692718,2.6022,160.83,160.33,60.64]
[1729898692719,37.7128245,160.54,160.34,1.14663171]
[1729898693023,37.7128245,160.58,160.34,37.7128245]
[1729898693217,37.7128245,160.62,160.42,37.7128245]
[1729898693420,173.0,160.79,160.42,37.7128245]
[1729898693421,37.7128245,160.66,160.42,37.7128245]
[1729898693719,37.7128245,160.58,160.34,40.2255245]
[1729898693922,37.7128245,160.58,160.38,37.7128245]
[1729898694224,37.7128245,160.62,160.38,37.7128245]
[1729898694421,37.7128245,160.54,160.34,2.5127]
[1729898694723,37.7128245,160.46,160.33,60.64]
[1729898695021,37.7128245,160.34,160.12,2.4797]
[1729898695224,6.2383,160.52,160.16,37.7128245]
[1729898695225,37.7128245,160.38,160.16,37.7128245]
[1729898695823,6.2383,160.52,160.16,37.7128245]
[1729898695824,37.7128245,160.39,160.16,37.7128245]
[1729898696020,38.7128245,160.53,160.24,37.7128245]
[1729898696021,37.7128245,160.47,160.24,37.7128245]
[1729898696225,37.7128245,160.47,160.25,60.62]
[1729898696428,37.7128245,160.38,160.25,60.62]
[1729898696618,37.7128245,160.43,160.21,37.7128245]
[1729898696927,1.0,160.46,160.24,37.7128245]
[1729898697121,37.7128245,160.56,160.32,37.7128245]
[1729898697320,181.972198,160.89,160.18,18.72]
[1729898697321,37.7128245,160.51,160.33,60.64]
[1729898697516,37.7128245,160.53,160.31,60.64]
[1729898697717,37.7128245,160.53,160.32,37.7128245]
[1729898697918,3.1189,160.53,160.42,3.1209]
[1729898698113,3.1189,160.53,160.32,2.4905]
[1729898698114,37.7128245,160.53,160.32,2.4905]
[1729898698324,179.2318,160.69,160.37,37.7128245]
[1729898698521,37.7128245,160.63,160.41,37.7128245]
[1729898698727,37.7128245,160.54,160.33,37.7128245]
[1729898699023,37.7128245,160.55,160.33,37.7128245]
[1729898699226,37.7128245,160.59,160.37,37.7128245]
[1729898699521,37.7128245,160.59,160.32,2.4905]
[1729898699522,173.0,160.7,160.32,2.4905]
[1729898699714,37.7128245,160.71,160.34,37.7128245]
[1729898699715,37.7128245,160.57,160.34,37.7128245]
[1729898699918,37.7128245,160.71,160.34,37.7128245]
[1729898699919,37.7128245,160.53,160.34,37.7128245]
[1729898700134,37.7128245,160.61,160.38,37.7128245]
[1729898700325,173.0,160.83,160.5,37.7128245]
[1729898700528,3.1155,160.71,160.58,3.1178]
[1729898700727,37.7128245,160.77,160.58,60.64]
[1729898700926,6.2248,160.87,160.59,37.7128245]
[1729898701135,24.8741,161.03,160.59,37.7128245]
[1729898701136,37.7128245,160.85,160.59,37.7128245]
[1729898701319,1.0,160.86,160.63,37.7128245]
[1729898701519,1.0,160.86,160.75,37.7128245]
[1729898701828,37.7128245,160.96,160.76,60.64]
[1729898702022,37.7128245,160.96,160.77,60.64]
[1729898702222,173.0,161.17,160.79,37.21]
[1729898702415,37.7128245,161.21,160.97,37.7128245]
[1729898702618,37.7128245,161.17,160.97,60.58]
[1729898702829,37.7128245,161.13,160.97,60.58]
[1729898703227,37.7128245,161.19,160.97,60.58]
[1729898703628,173.0,161.34,161.0,37.7128245]
[1729898703824,37.7128245,161.27,161.04,37.7128245]
[1729898704036,37.7128245,161.22,160.99,37.7128245]
[1729898704224,37.7128245,161.18,160.89,180.32870464]
[1729898704431,37.7128245,161.22,161.01,37.7128245]
[1729898704732,37.7128245,161.18,160.97,37.7128245]
[1729898704924,37.7128245,161.18,160.96,60.58]
[1729898705224,3.1073,161.13,161.01,3.1094]
[1729898705427,37.7128245,161.14,160.96,60.58]
[1729898705731,3.1106,160.96,160.85,3.1125]
[1729898706032,37.7128245,160.86,160.64,37.7128245]
[1729898706330,37.7128245,160.9,160.68,37.7128245]
[1729898706527,37.7128245,160.86,160.64,37.7128245]
[1729898706723,37.7128245,160.82,160.57,60.52]
[1729898706940,37.7128245,160.87,160.63,37.7128245]
[1729898707125,60.52,160.99,160.57,60.52]
[1729898707126,37.7128245,160.79,160.57,60.52]
[1729898707426,37.7128245,160.79,160.57,98.2328245]
[1729898707924,37.7128245,160.87,160.61,37.7128245]
[1729898708121,37.7128245,160.87,160.57,60.52]
[1729898708122,37.7128245,160.75,160.57,60.52]
[1729898708320,37.7128245,160.67,160.45,98.2328245]
[1729898708627,1.0,160.78,160.45,60.52]
[1729898708628,37.7128245,160.63,160.45,60.52]
[1729898709022,1.0,160.74,160.47,37.7128245]
[1729898709430,1.0,160.74,160.44,3.1205]
[1729898709431,3.1175,160.6,160.44,3.1205]
[1729898709625,37.7128245,160.6,160.37,37.7128245]
[1729898709827,1.0,160.74,160.55,37.7128245]
[1729898710025,37.7128245,160.65,160.4,60.52]
[1729898710229,1.0,160.74,160.49,43.08713344]
[1729898710424,1.0,160.74,160.54,43.08713344]
[1729898710829,43.08713344,160.74,160.44,43.08713344]
[1729898711025,3.1173,160.61,160.49,3.1196]
[1729898711232,1.0,160.73,160.39,60.52]
[1729898711233,43.08713344,160.69,160.39,103.60713344]
[1729898711532,1.0,160.73,160.43,3.1207]
[1729898711533,3.1184,160.56,160.43,3.1207]
[1729898711751,43.08713344,160.64,160.39,60.52]
[1729898711922,1.0,160.68,160.49,43.08713344]
[1729898712231,43.08713344,160.99,160.39,60.52]
[1729898712232,43.08713344,160.86,160.54,43.08713344]
[1729898712426,43.08713344,160.86,160.6,43.08713344]
[1729898712731,43.08713344,160.81,160.61,60.54]
[1729898712938,43.08713344,160.86,160.61,60.54]
[1729898713136,1.0,160.85,160.61,60.54]
[1729898713329,1.0,160.85,160.55,43.08713344]
[1729898713532,3.1147,160.75,160.59,3.1176]
[1729898713728,1.0,160.85,160.56,43.08713344]
[1729898713928,1.0,160.85,160.5,2.5338]
[1729898713929,43.08713344,160.74,160.5,2.5338]
[1729898714131,43.08713344,160.69,160.41,43.08713344]
[1729898714330,43.08713344,160.69,160.36,43.08713344]
[1729898714531,1.0,160.74,160.47,43.08713344]
[1729898715128,3.1137,160.8,160.66,3.1161]
[1729898715347,43.08713344,160.85,160.59,60.56]
[1729898715738,3.1578876,161.06,160.59,60.56]
[1729898715739,43.08713344,160.94,160.62,43.08713344]
[1729898715934,173.0,161.13,160.72,43.08713344]
[1729898716139,43.08713344,161.04,160.72,43.08713344]
[1729898716337,43.08713344,160.94,160.67,43.08713344]
[1729898716539,43.08713344,160.99,160.69,43.08713344]
[1729898716738,3.1112,160.93,160.8,3.1134]
[1729898716940,43.08713344,161.09,160.8,43.08713344]
[1729898717445,43.08713344,161.09,160.76,60.56]
[1729898717446,43.08713344,161.03,160.76,60.56]
[1729898717640,61.4976,161.27,160.76,60.56]
[1729898717641,43.08713344,161.14,160.84,43.08713344]
[1729898717839,43.08713344,161.09,160.78,43.08713344]
[1729898718039,43.08713344,161.15,160.83,43.08713344]
[1729898718339,3.109,161.04,160.92,3.1112]
[1729898718536,1.0,161.13,160.83,43.08713344]
[1729898718748,43.08713344,161.2,160.89,43.08713344]
[1729898718941,43.08713344,161.26,160.94,43.08713344]
[1729898719139,43.08713344,161.25,160.95,60.52]
[1729898719339,60.52,161.4,160.89,43.08713344]
[1729898719340,43.08713344,161.19,160.89,43.08713344]
[1729898719740,179.2049,161.38,160.89,43.08713344]
[1729898719741,1.0,161.25,160.89,43.08713344]
[1729898719941,3.1066,161.17,161.04,3.1089]
[1729898720160,1.0,161.25,161.03,60.52]
[1729898720351,43.08713344,161.22,161.03,60.52]
[1729898720645,43.08713344,161.22,160.89,48.09163344]
[1729898720850,43.08713344,161.27,160.94,43.08713344]
[1729898721342,3.106,161.2,161.05,3.1086]
[1729898721542,43.08713344,161.32,161.03,43.08713344]
[1729898722249,43.08713344,161.3,160.98,43.08713344]